bitfinex/quotes_ETHUSD_20220202
["timestamp","ask_amount","ask_price","bid_price","bid_amount"]
[1643816404171,0.95312841,2670.0,2669.1,4.08347692]
[1643816404369,0.95312841,2670.0,2669.1,1.873]
[1643816404869,0.95312841,2670.0,2669.1,2.173]
[1643816405068,0.95312841,2670.0,2669.5,0.20717388]
[1643816405574,0.95312841,2670.0,2669.0,2.06046]
[1643816405824,0.1779,2669.9,2668.7,0.1872]
[1643816406024,0.434,2669.8,2668.7,0.02]
[1643816406220,0.00291698,2669.1,2668.7,0.02]
[1643816406422,0.00291698,2669.1,2668.9,0.21843725]
[1643816407621,0.00291698,2669.1,2668.9,0.21952346]
[1643816407827,0.00291698,2669.1,2668.9,0.00108621]
[1643816408223,0.00291698,2669.1,2668.7,0.02]
[1643816408622,1.11476,2669.7,2669.1,0.02708302]
[1643816408826,0.1779,2669.7,2669.1,0.02708302]
[1643816409023,0.1779,2669.9,2669.4,0.16013428]
[1643816409461,1.11197149,2669.8,2669.4,0.16013428]
[1643816409863,1.11197149,2669.8,2669.4,0.924663]
[1643816410262,0.95312841,2670.0,2669.4,0.924663]
[1643816410468,1.11219093,2669.9,2669.4,0.16013428]
[1643816412066,1.11219093,2669.9,2669.1,0.02708302]
[1643816412268,1.29009093,2669.9,2669.1,0.02708302]
[1643816412466,1.11704164,2669.8,2669.1,0.02708302]
[1643816412667,0.1779,2669.7,2669.1,0.02708302]
[1643816412969,1.11704164,2669.8,2669.1,0.02708302]
[1643816413214,1.11219093,2669.7,2669.2,0.21370937]
[1643816413615,1.13102841,2670.0,2669.2,0.21370937]
[1643816413616,1.11219093,2669.6,2669.2,0.21370937]
[1643816413815,0.95312841,2670.0,2669.2,0.02708302]
[1643816414016,1.11371674,2669.5,2668.8,0.21544085]
[1643816414215,1.11371674,2669.5,2668.8,0.18835783]
[1643816414416,1.11371674,2669.6,2668.8,0.1872]
[1643816414617,0.00260292,2669.8,2668.8,0.1872]
[1643816414816,0.00260292,2669.5,2668.9,0.40699389]
[1643816415015,0.95312841,2670.0,2669.4,0.69066836]
[1643816415216,1.11441701,2669.9,2669.4,0.69066836]
[1643816415415,1.11441701,2669.9,2669.4,0.3]
[1643816415618,1.11441701,2669.9,2668.9,0.03777907]
[1643816415816,1.11441701,2669.8,2668.9,0.02708302]
[1643816416016,1.11441701,2669.7,2668.9,0.06218463]
[1643816416217,0.83080642,2670.4,2668.9,0.03510161]
[1643816416419,0.81552404,2669.8,2669.0,0.77456915]
[1643816416618,0.81552404,2669.8,2669.0,1.07094262]
[1643816416965,0.01,2670.1,2669.0,1.07094262]
[1643816417169,0.00492259,2669.7,2669.0,1.07094262]
[1643816417365,0.00492259,2669.7,2669.6,0.22220395]
[1643816418270,0.78229045,2670.2,2669.1,0.96798593]
[1643816418567,0.0049227,2669.8,2669.1,0.97066914]
[1643816418766,0.0049227,2669.8,2669.1,0.9366]
[1643816418966,1.13908411,2670.3,2669.1,3.22241139]
[1643816419166,1.13908411,2670.3,2669.1,3.1866]
[1643816419367,1.13908411,2670.3,2669.1,0.97181239]
[1643816419566,1.13908411,2670.3,2669.1,0.9366]
[1643816419766,1.13908411,2670.3,2669.1,0.96680949]
[1643816420067,2.73300229,2670.3,2669.1,0.96680949]
[1643816420467,2.73300229,2670.3,2668.6,1.4095]
[1643816420468,0.16180062,2670.1,2668.7,1.90847649]
[1643816420738,0.93674,2669.9,2669.6,0.00106586]
[1643816420920,2.3,2669.7,2668.5,3.75770996]
[1643816421113,0.02002,2669.6,2668.5,3.7456424]
[1643816421316,0.00260299,2669.6,2668.6,0.1872]
[1643816421514,0.00260299,2669.6,2669.1,0.82213099]
[1643816421915,0.00260299,2669.8,2669.1,0.82213099]
[1643816422216,0.01999,2670.2,2669.1,0.82213099]
[1643816422618,0.01999,2670.2,2669.1,1.12213099]
[1643816422817,0.01999,2670.2,2669.3,0.01208375]
[1643816423016,0.86381295,2670.2,2669.1,1.12213099]
[1643816423217,0.86381295,2670.2,2669.2,0.00604089]
[1643816423421,0.86381295,2670.2,2669.1,1.12213099]
[1643816423816,0.86381295,2670.2,2669.2,0.93656]
[1643816424463,1.78623035,2670.2,2669.5,0.21733365]
[1643816424666,0.86381295,2670.2,2669.5,0.21733365]
[1643816425265,0.86381295,2670.2,2669.6,0.77257189]
[1643816425466,0.86381295,2670.2,2669.5,1.15691454]
[1643816425868,0.00500044,2670.3,2669.5,1.45691454]
[1643816426070,0.00500044,2670.3,2669.5,1.49527552]
[1643816426267,0.00500044,2670.3,2669.5,1.27928911]
[1643816426466,0.9324174,2670.5,2669.5,0.93644]
[1643816426467,0.9224174,2670.2,2669.5,0.93644]
[1643816426668,0.9224174,2670.2,2669.3,0.1872]
[1643816426669,0.9224174,2670.0,2669.3,0.1872]
[1643816426868,0.9224174,2670.0,2669.0,1.87305]
[1643816426869,0.9224174,2669.9,2669.5,0.00448813]
[1643816427668,0.93679,2669.7,2669.0,18.42437653]
[1643816427868,0.02,2669.6,2669.5,1.21]
[1643816428219,0.01991,2669.7,2669.5,1.21]
[1643816428417,1.87057742,2669.9,2669.5,1.21]
[1643816428620,1.82057742,2669.9,2669.5,1.21]
[1643816429019,0.6903175,2669.7,2669.5,1.21]
[1643816429229,0.6903175,2670.0,2669.5,1.21450671]
[1643816429521,0.6903175,2670.0,2669.6,0.21076148]
[1643816429718,0.69292248,2670.1,2669.6,0.21076148]
[1643816429918,0.6903175,2670.0,2669.6,0.21076148]
[1643816430321,0.6903175,2670.0,2669.6,0.94648196]
[1643816430518,0.00260498,2670.2,2669.6,0.94648196]
[1643816430519,0.6903175,2670.1,2669.6,0.94648196]
[1643816430722,0.6903175,2670.1,2669.6,0.21076148]
[1643816431418,0.6903175,2670.0,2669.6,0.21076148]
[1643816431620,0.6903175,2670.0,2669.5,1.21450671]
[1643816431819,0.6903175,2670.1,2669.5,1.21450671]
[1643816432091,0.6903175,2670.0,2669.5,1.21450671]
[1643816432276,0.00260498,2670.2,2669.6,5.6578597]
[1643816432479,0.00260498,2670.4,2669.6,5.6578597]
[1643816432877,0.00260498,2670.4,2670.2,3.11267054]
[1643816432878,0.00500588,2670.3,2670.2,3.11267054]
[1643816433681,0.9224174,2670.6,2670.2,3.11267054]
[1643816433879,0.00500635,2670.4,2670.2,3.11267054]
[1643816434078,0.00500635,2670.4,2670.2,2.95]
[1643816434277,0.03262695,2670.8,2670.3,5.6]
[1643816434479,1.37606123,2671.3,2670.6,0.93602]
[1643816434677,1.37606123,2671.3,2670.4,5.62290552]
[1643816434678,1.37606123,2671.3,2670.8,0.87271205]
[1643816434878,1.37606123,2671.3,2670.6,0.00634808]
[1643816434879,0.04035807,2670.9,2670.6,0.00634808]
[1643816435078,0.01914,2671.3,2670.8,2.53430207]
[1643816435279,1.82770706,2671.7,2671.0,5.6]
[1643816435483,2.1815067,2671.9,2671.1,2.1981]
[1643816435719,2.1815067,2671.9,2671.2,0.02913]
[1643816435922,2.1815067,2671.9,2671.2,1.91056719]
[1643816436120,1.02353962,2671.8,2671.3,0.01]
[1643816436423,1.02353962,2671.8,2671.4,0.20504925]
[1643816436620,1.82770706,2672.4,2671.5,5.6]
[1643816436823,0.01,2672.6,2672.1,0.01206594]
[1643816437022,0.01,2673.0,2672.1,0.02454444]
[1643816437221,2.88133336,2673.2,2672.2,2.15]
[1643816437424,2.88133336,2673.2,2672.4,0.01767124]
[1643816437425,1.0536263,2673.2,2672.4,0.01767124]
[1643816437722,0.02012412,2672.9,2672.8,4.70042408]
[1643816437922,0.01012412,2672.9,2672.8,6.9455241]
[1643816438122,0.01012412,2672.9,2672.8,6.75042408]
[1643816438123,2.412e-05,2672.9,2672.8,6.75042408]
[1643816438321,2.7961,2673.5,2672.9,5.6]
[1643816438322,0.2961,2673.5,2672.9,5.6]
[1643816438525,1.82770706,2674.6,2673.2,5.6]
[1643816438723,1.76,2674.6,2673.3,0.19534203]
[1643816438930,1.76,2674.6,2674.0,0.91094076]
[1643816439219,1.76,2674.6,2673.3,1.1881]
[1643816439220,1.71,2674.6,2673.8,0.93491]
[1643816439673,1.71,2674.6,2673.9,0.30489104]
[1643816439865,1.71,2674.6,2673.7,0.19204346]
[1643816440067,1.71,2674.6,2673.6,0.8413216]
[1643816440068,1.71,2674.6,2674.1,1.86945]
[1643816440373,1.66,2674.6,2673.3,0.1869]
[1643816440570,0.17264469,2674.4,2673.3,0.17524981]
[1643816440769,0.93166457,2673.6,2673.3,0.17524981]
[1643816440969,7.87357162,2674.6,2672.8,0.3]
[1643816441168,0.01220641,2674.1,2672.8,0.18843389]
[1643816441372,0.187,2674.0,2672.8,0.37653389]
[1643816441573,0.187,2674.0,2672.8,1.31173389]
[1643816441770,0.187,2674.0,2672.9,0.3]
[1643816441969,0.73206249,2674.1,2673.6,0.21255492]
[1643816442174,0.01268002,2674.8,2673.2,0.8213617]
[1643816442175,0.1869,2674.6,2673.3,0.1869]
[1643816442371,0.00505439,2673.6,2673.2,1.3082617]
[1643816442570,0.00505439,2673.6,2673.3,1.13104109]
[1643816442770,0.00505439,2673.6,2673.5,5.7881]
[1643816442970,0.00505439,2673.6,2673.5,6.0881]
[1643816443221,0.00505439,2673.6,2673.5,0.1881]
[1643816443421,0.81345412,2674.1,2673.4,0.187]
[1643816443621,0.00505434,2673.7,2673.4,0.187]
[1643816444421,0.86802698,2673.6,2673.4,0.187]
[1643816444821,0.00505434,2673.7,2673.4,0.187]
[1643816445629,0.00505434,2673.7,2673.3,0.19345583]
[1643816445826,0.187,2674.1,2673.3,0.93223631]
[1643816446025,0.00489308,2673.7,2673.3,0.93223631]
[1643816446226,0.00489308,2673.7,2673.3,0.19345583]
[1643816446427,0.00489308,2673.7,2673.1,1.12206]
[1643816446627,0.00489308,2673.7,2673.0,1.87001]
[1643816446830,0.00489308,2673.7,2672.9,0.187]
[1643816447071,0.187,2674.0,2673.0,0.71432714]
[1643816447271,0.00489317,2673.5,2672.8,2.60415192]
[1643816447472,0.00489317,2673.5,2672.8,2.41715192]
[1643816447869,0.00489317,2673.5,2672.8,1.41715192]
[1643816448073,0.00489317,2673.5,2672.9,0.03275389]
[1643816448271,0.187,2674.1,2672.9,0.03275389]
[1643816448272,0.84875175,2673.6,2672.9,0.03275389]
[1643816448570,0.00489327,2673.3,2672.9,0.0392903]
[1643816448770,0.00489327,2673.3,2672.9,0.03535479]
[1643816448971,0.00489327,2673.3,2673.0,0.21949154]
[1643816449375,0.00489327,2673.3,2672.9,1.11267]
[1643816449572,0.01957001,2673.7,2672.4,0.187]
[1643816449573,0.99999999,2673.5,2672.4,0.187]
[1643816449777,0.01230174,2673.1,2672.8,0.0038252]
[1643816449972,0.621,2673.0,2672.8,0.0038252]
[1643816450371,0.69507789,2672.9,2672.8,0.0038252]
[1643816450573,0.88207789,2672.9,2672.3,1.2492]
[1643816450817,0.187,2672.8,2672.3,1.2492]
[1643816451316,0.63050838,2672.8,2672.3,1.2492]
[1643816451720,0.19650838,2672.8,2672.3,1.2492]
[1643816451924,0.187,2672.8,2672.3,1.2492]
[1643816452116,0.187,2672.8,2672.4,0.0038257]
[1643816452315,0.434,2672.7,2672.4,0.0038257]
[1643816452517,0.187,2672.6,2672.4,0.0038257]
[1643816452717,0.621,2672.6,2672.4,0.0038257]
[1643816452914,0.434,2672.6,2671.6,0.21291603]
[1643816453114,0.621,2672.6,2671.6,0.21291603]
[1643816453319,0.63943559,2672.3,2671.6,0.21291603]
[1643816453514,0.43660743,2672.5,2671.6,0.21291603]
[1643816454317,0.00260743,2672.5,2671.7,0.1881]
[1643816454566,0.00260743,2672.5,2672.0,0.82139381]
[1643816454759,0.187,2672.9,2672.0,0.82139381]
[1643816454760,0.18960743,2672.9,2672.0,0.82139381]
[1643816454960,0.00260743,2672.9,2672.0,1.30839381]
[1643816455162,0.00260743,2672.9,2672.0,1.31527903]
[1643816455360,0.00260743,2672.9,2672.6,0.20916017]
[1643816455562,0.13819997,2673.0,2672.0,1.31218784]
[1643816455764,0.13819997,2673.0,2672.3,0.00392918]
[1643816455765,0.14299164,2673.0,2672.3,0.00392918]
[1643816456160,0.14559907,2673.0,2672.3,0.00392918]
[1643816456760,0.14559907,2673.0,2672.0,1.30839381]
[1643816456761,0.1408074,2673.0,2672.6,0.20375895]
[1643816456960,0.14307463,2673.0,2672.5,0.00420468]
[1643816457363,0.00260743,2673.3,2672.8,0.01215913]
[1643816457566,0.00260743,2673.1,2672.9,0.20727904]
[1643816457762,0.00260743,2673.1,2673.0,5.7881]
[1643816457960,0.00260743,2673.1,2673.0,6.00563428]
[1643816458216,0.80976176,2674.0,2673.6,0.18125889]
[1643816458425,0.925077,2674.7,2673.0,6.54467298]
[1643816458426,2.85,2674.6,2673.3,0.1881]
[1643816458618,0.00260743,2674.7,2673.3,0.1881]
[1643816458817,0.00260743,2674.5,2673.3,0.1881]
[1643816459419,0.88495567,2674.1,2673.0,6.54729873]
[1643816459822,0.01226754,2674.4,2673.0,6.84729873]
[1643816460020,0.00260743,2674.0,2673.0,7.78240873]
[1643816460220,0.00260743,2674.0,2673.0,7.48240873]
[1643816460417,0.00260743,2674.0,2673.1,0.187]
[1643816460620,0.01487497,2674.4,2673.1,0.187]
[1643816460821,0.01487497,2674.4,2672.9,0.03315926]
[1643816460822,1.87074,2673.9,2672.9,0.187]
[1643816461022,1.87074,2673.9,2672.1,11.29440039]
[1643816461023,0.99999999,2673.7,2672.1,11.29440039]
[1643816461234,0.99999999,2673.7,2671.7,5.4652]
[1643816461235,0.0121424,2673.1,2672.3,0.187]
[1643816461421,0.0121424,2673.1,2671.8,0.187]
[1643816461422,0.187,2673.0,2671.8,0.187]
[1643816461619,0.434,2672.9,2672.2,0.7771154]
[1643816461823,0.00260743,2672.9,2672.2,0.7771154]
[1643816462067,0.00260743,2672.9,2672.4,0.21931627]
[1643816462268,0.00260743,2672.9,2672.2,0.01231068]
[1643816462466,0.18960743,2673.4,2672.2,0.01231068]
[1643816462665,1.87136,2673.2,2672.0,0.187]
[1643816462964,0.19112908,2673.1,2671.6,0.187]
[1643816463165,0.91116392,2672.9,2672.0,0.66901631]
[1643816463363,0.91116392,2672.9,2671.6,0.187]
[1643816463364,0.91116392,2672.9,2671.9,0.19735653]
[1643816463765,0.00260743,2672.8,2671.6,2.05803]
[1643816463968,0.99999999,2671.9,2671.0,0.1871]
[1643816464173,0.99999999,2671.9,2670.3,0.187]
[1643816464174,0.01246763,2671.5,2670.3,0.187]
[1643816464364,0.01246763,2671.5,2670.3,0.77378]
[1643816464365,0.20266826,2671.4,2670.3,0.77378]
[1643816464770,0.1872,2671.4,2670.9,0.19150925]
[1643816464976,0.434,2671.7,2670.9,0.19150925]
[1643816464977,0.00260743,2671.3,2670.9,0.19150925]
[1643816465166,0.00260743,2671.3,2671.0,0.187]
[1643816465566,0.187,2672.1,2671.1,0.87591113]
[1643816465819,0.13819997,2672.2,2671.5,0.19903698]
[1643816466017,0.13819997,2672.2,2671.1,0.87591113]
[1643816466227,0.00260743,2672.1,2671.1,0.87591113]
[1643816466421,0.00260743,2672.1,2671.1,0.90973853]
[1643816466622,0.00260743,2672.1,2671.7,0.00477812]
[1643816466822,0.18960743,2672.7,2671.7,0.00477812]
[1643816467020,0.18960743,2672.7,2671.7,2.60903952]
[1643816467219,0.00260743,2672.7,2671.8,1.1881]
[1643816467417,0.00503536,2673.1,2671.9,0.187]
[1643816467622,0.93811743,2673.2,2671.9,0.1939668]
[1643816467819,0.73044577,2672.7,2672.1,0.00143325]
[1643816468025,0.187,2673.1,2672.2,0.1881]
[1643816468026,0.00260743,2673.0,2672.2,0.1881]
[1643816468221,0.00260743,2673.0,2672.2,0.19333522]
[1643816468422,0.00260743,2673.0,2672.2,0.00523522]
[1643816468723,0.01298668,2673.2,2672.2,0.00523522]
[1643816468724,0.01559411,2673.2,2672.2,0.00523522]
[1643816468923,0.86269703,2673.2,2672.5,0.00143303]
[1643816469121,0.8600896,2673.2,2672.5,0.20653762]
[1643816469323,0.8600896,2673.2,2672.5,0.00143303]
[1643816469569,0.00260743,2673.5,2672.5,0.00143303]
[1643816469777,0.00260743,2673.1,2672.5,0.00143303]
[1643816469976,0.00260743,2673.1,2672.2,0.187]
[1643816470277,0.00502947,2673.1,2672.7,0.00477642]
[1643816471072,0.18960743,2673.6,2672.2,0.87215286]
[1643816471273,0.93229275,2673.5,2672.7,0.00477642]
[1643816471474,0.00502954,2673.1,2672.7,0.00477642]
[1643816471678,0.94451611,2673.0,2672.7,0.00477642]
[1643816471875,0.01222336,2673.0,2672.7,0.00477642]
[1643816472277,0.00763697,2673.1,2672.1,0.187]
[1643816472278,0.00260743,2673.1,2672.1,0.40854295]
[1643816472476,0.78291525,2673.1,2672.2,0.76962903]
[1643816472673,0.00502947,2673.1,2672.7,0.00477642]
[1643816473514,0.187,2673.6,2672.2,0.76962903]
[1643816473515,0.00260743,2673.5,2672.2,0.76962903]
[1643816473718,0.00496148,2673.1,2672.7,0.00454954]
[1643816474119,0.93637534,2673.0,2672.7,0.00454954]
[1643816474319,1.1388916,2673.0,2672.7,0.00454954]
[1643816474522,0.93637534,2672.9,2672.7,0.00454954]
[1643816474720,0.93637534,2672.9,2672.0,18.203651]
[1643816474721,0.88607659,2672.4,2672.0,18.203651]
[1643816475117,0.187,2672.3,2672.0,18.203651]
[1643816475321,0.187,2672.7,2672.0,18.203651]
[1643816475524,0.18960743,2672.7,2672.0,18.203651]
[1643816475920,0.00260743,2672.7,2672.0,18.203651]
[1643816476119,0.93720725,2672.8,2672.0,18.203651]
[1643816476321,0.187,2672.7,2672.0,18.203651]
[1643816476522,0.82015179,2672.1,2672.0,18.203651]
[1643816476719,0.99741008,2672.1,2672.0,18.016651]
[1643816477165,0.17725829,2672.1,2672.0,18.016651]
[1643816477364,0.00260743,2672.6,2672.0,18.016651]
[1643816477866,2.20630996,2673.6,2672.4,0.00700785]
[1643816477867,0.00260743,2672.8,2672.4,0.00700785]
[1643816478265,0.00260743,2672.8,2672.5,0.72788467]
[1643816478464,1.85688453,2673.4,2672.4,0.00700785]
[1643816478664,0.00472569,2673.0,2672.5,0.00375305]
[1643816478867,0.94137846,2672.9,2672.5,0.00375305]
[1643816479068,0.00472569,2673.0,2672.5,0.00375305]
[1643816479069,0.94137846,2672.8,2672.5,0.00375305]
[1643816479269,0.94137846,2672.7,2672.5,0.00375305]
[1643816479468,0.20945326,2672.6,2672.5,0.00375305]
[1643816479666,0.20945326,2672.6,2672.3,1.5]
[1643816479667,1.152089,2672.6,2672.3,1.45]
[1643816479866,0.20945326,2672.6,2672.5,0.00375298]
[1643816480066,1.15289792,2672.6,2672.5,0.00375298]
[1643816480720,1.15289792,2672.6,2672.3,1.45]
[1643816480917,0.94344466,2672.5,2672.3,1.45]
[1643816481114,0.01264289,2672.4,2672.0,17.77905647]
[1643816481315,1.93903844,2672.7,2672.0,17.77905647]
[1643816481712,1.63903844,2672.7,2672.0,17.77905647]
[1643816481914,0.93584,2672.3,2672.0,17.77905647]
[1643816482317,0.63903844,2672.7,2672.0,17.77905647]
[1643816482516,0.00260743,2672.7,2672.0,17.77905647]
[1643816482715,0.1871,2673.0,2672.0,17.77905647]
[1643816482916,0.22067845,2672.2,2672.0,17.77905647]
[1643816483618,0.83539316,2672.1,2672.0,17.77905647]
[1643816484015,0.22067845,2672.2,2672.0,17.77905647]
[1643816484216,0.187,2672.1,2672.0,17.77905647]
[1643816484472,0.22067845,2672.2,2672.0,17.77905647]
[1643816484677,2.05884,2672.3,2672.0,17.77905647]
[1643816484678,0.187,2672.3,2672.0,17.77905647]
[1643816484874,0.187,2672.5,2672.0,17.77905647]
[1643816485071,0.82072224,2672.5,2672.0,17.78332971]
[1643816485272,0.82072224,2672.5,2672.0,17.77905647]
[1643816485672,0.16219422,2672.2,2672.0,17.77905647]
[1643816485874,0.16219422,2672.2,2672.1,2.50475622]
[1643816486071,0.82072224,2672.5,2672.1,2.50475622]
[1643816486271,0.00260743,2672.4,2672.1,2.50475622]
[1643816486675,0.00260743,2672.4,2672.1,2.5]
[1643816486872,0.00260743,2672.8,2672.1,2.5]
[1643816487071,0.00260743,2672.8,2672.1,2.51046262]
[1643816487072,0.0050293,2672.7,2672.1,2.51046262]
[1643816487272,0.21909203,2672.6,2672.1,2.51046262]
[1643816487472,0.0050293,2672.7,2672.1,2.50475622]
[1643816487672,0.12203673,2673.0,2672.2,4.15]
[1643816487876,0.12203673,2673.0,2672.4,0.00510546]
[1643816487877,0.00260781,2672.7,2672.4,0.00510546]
[1643816488320,0.00754539,2672.7,2672.4,0.0059275]
[1643816488522,0.00493758,2672.7,2672.4,0.38502298]
[1643816488718,0.00493758,2672.7,2672.4,1.01430922]
[1643816489117,0.02641212,2673.0,2672.4,0.187]
[1643816489319,0.95071892,2673.3,2672.0,19.00415647]
[1643816489320,0.91050248,2673.2,2672.0,19.00415647]
[1643816489518,0.91050248,2673.2,2672.4,0.00134131]
[1643816489718,0.20790041,2672.9,2672.4,0.00134131]
[1643816489922,0.93554,2673.1,2672.4,0.00134131]
[1643816490318,0.3,2673.0,2672.0,19.85823138]
[1643816490523,0.80776131,2672.8,2672.0,19.85823138]
[1643816490721,0.80776131,2672.8,2672.0,18.63313138]
[1643816490919,0.19871547,2672.5,2672.0,17.72905647]
[1643816491230,0.69700647,2672.7,2672.0,17.72905647]
[1643816491523,1.74339131,2672.8,2672.0,17.72905647]
[1643816491524,2.44039778,2672.8,2672.0,17.72905647]
[1643816491996,1.63623533,2672.8,2672.0,17.72905647]
[1643816492177,0.00359886,2672.8,2672.0,17.72905647]
[1643816492377,0.00359886,2672.8,2672.0,17.8891128]
[1643816492576,0.00359886,2672.8,2672.1,0.187]
[1643816492778,0.69700647,2673.0,2672.1,0.187]
[1643816492977,0.88796084,2672.9,2672.3,0.00143426]
[1643816493378,1.88496731,2672.9,2672.3,0.00143426]
[1643816493583,0.69700647,2672.6,2672.3,0.00143426]
[1643816493783,0.69700647,2672.5,2672.3,0.00143426]
[1643816493977,0.69700647,2672.5,2672.0,17.72905647]
[1643816494180,0.02724,2672.6,2672.3,0.00143423]
[1643816494378,0.22118754,2672.7,2672.3,0.00143423]
[1643816494778,2.56837647,2672.8,2672.3,0.00143423]
[1643816494978,0.02722,2673.0,2672.3,0.00143423]
[1643816495178,0.69700647,2673.1,2672.0,17.7372361]
[1643816495377,0.02719,2673.2,2672.1,0.187]
[1643816495378,0.69700647,2673.2,2672.1,0.187]
[1643816495579,0.69700647,2673.2,2672.4,5.60143418]
[1643816495818,0.20302196,2673.0,2672.4,5.60975731]
[1643816496223,0.69700647,2673.1,2672.4,0.00143418]
[1643816496418,0.69700647,2673.1,2672.3,0.71347285]
[1643816496615,0.00502218,2672.8,2672.3,0.71347285]
[1643816497218,0.00502218,2672.8,2672.1,0.187]
[1643816497616,1.84589248,2673.4,2672.1,0.187]
[1643816497617,0.69700647,2673.2,2672.1,0.187]
[1643816497817,0.93539,2673.4,2672.1,0.187]
[1643816497818,0.69700647,2673.1,2672.1,0.187]
[1643816498016,1.63252647,2673.1,2672.1,0.187]
[1643816498421,0.69700647,2673.1,2672.4,4.69707908]
[1643816498623,0.72424647,2673.4,2672.4,4.8415456]
[1643816498820,0.69700647,2673.5,2672.4,4.8415456]
[1643816499022,0.69700647,2673.5,2672.4,5.0296456]
[1643816499465,0.69700647,2673.5,2672.7,0.80970953]
[1643816500066,0.69700647,2673.7,2672.7,0.80970953]
[1643816500267,0.69700647,2673.7,2672.7,0.81803577]
[1643816500472,0.69700647,2673.7,2672.8,0.1881]
[1643816500766,0.69700647,2673.8,2672.8,0.22494776]
[1643816500965,0.69700647,2673.8,2673.2,0.89732656]
[1643816501169,0.69700647,2673.8,2672.9,1.77760319]
[1643816501368,0.00502186,2673.4,2672.9,0.9915201]
[1643816501572,0.90362115,2673.3,2673.0,0.1881]
[1643816501775,0.00502186,2673.4,2673.0,0.1881]
[1643816501776,0.00502186,2673.4,2673.1,0.187]
[1643816501969,0.02008443,2673.8,2673.2,0.67601246]
[1643816502269,0.02008443,2673.8,2673.6,5.47414035]
[1643816502270,0.88470809,2673.7,2673.6,5.47414035]
[1643816502467,0.88470809,2673.7,2673.6,5.66114035]
[1643816502668,0.88470809,2673.7,2673.6,5.487]
[1643816503068,0.88470809,2674.1,2673.6,5.487]
[1643816503314,0.88470809,2674.0,2673.6,5.3]
[1643816503517,0.88470809,2673.9,2673.6,5.3]
[1643816503716,0.88470809,2673.8,2673.5,1.12165]
[1643816503918,0.04739,2674.2,2673.5,1.12165]
[1643816503919,0.88470809,2673.7,2673.5,1.12165]
[1643816504122,0.00260688,2674.3,2673.5,1.12165]
[1643816504323,0.88630862,2674.3,2673.5,1.12165]
[1643816504519,0.00260688,2674.3,2673.5,1.30975]
[1643816504718,0.00260688,2674.3,2673.5,1.34853537]
[1643816504918,0.00260688,2674.5,2673.5,1.30975]
[1643816505117,0.00260688,2674.5,2673.5,1.34313746]
[1643816505318,0.88630862,2674.5,2673.7,1.1247452]
[1643816505521,0.88370174,2674.4,2673.8,0.93472]
[1643816505719,0.88370174,2674.3,2673.8,0.93472]
[1643816505917,0.00260688,2674.6,2673.7,1.86938]
[1643816505918,0.88370174,2674.2,2673.7,1.86938]
[1643816506118,0.00260688,2674.6,2673.5,1.5569]
[1643816506119,0.88370174,2674.1,2673.5,1.3688]
[1643816506317,0.88370174,2674.0,2673.5,0.1369]
[1643816506517,0.00502143,2674.2,2673.5,0.1369]
[1643816506726,0.88278317,2674.1,2673.5,0.1369]
[1643816506965,0.88278317,2674.1,2673.5,1.8696]
[1643816507164,1.9831493,2674.1,2673.5,1.8696]
[1643816507366,0.88278317,2674.0,2673.1,0.1869]
[1643816507566,0.01269404,2673.8,2672.8,0.00478049]
[1643816507765,0.88278317,2673.7,2672.8,0.00478049]
[1643816507964,0.05027,2673.6,2672.8,0.00478049]
[1643816508166,0.75607528,2673.2,2672.8,0.00478049]
[1643816508366,0.05108,2673.4,2672.8,0.00478049]
[1643816508564,0.05108,2673.4,2672.4,2.24114997]
[1643816508565,0.883003,2673.3,2672.4,2.24114997]
[1643816508865,0.883003,2673.3,2672.5,0.67431855]
[1643816508866,0.05188,2673.2,2672.5,0.67431855]
[1643816509067,0.05267,2673.3,2672.5,0.67431855]
[1643816509463,0.7770442,2673.2,2672.5,0.67431855]
[1643816510844,1.7124642,2673.2,2672.5,0.67431855]
[1643816511042,1.60684289,2673.2,2672.7,0.00476872]
[1643816511341,0.09801,2673.1,2672.7,0.00476872]
[1643816511740,0.19274034,2672.8,2672.7,0.00476872]
[1643816511945,0.19274034,2672.8,2672.4,0.13819997]
[1643816512143,0.19274034,2672.8,2672.5,0.67388959]
[1643816512344,0.19274034,2672.8,2672.0,17.72905647]
[1643816512543,0.19274034,2672.8,2672.1,0.67397074]
[1643816512843,0.16375199,2672.3,2672.0,17.61655647]
[1643816513245,0.84166604,2672.2,2672.0,17.61655647]
[1643816513543,0.84166604,2672.2,2672.0,17.62132644]
[1643816514244,1.09962199,2672.3,2672.0,17.62132644]
[1643816514507,0.09721,2672.3,2672.1,0.67404597]
[1643816514699,0.09642,2673.0,2672.1,0.67404597]
[1643816514898,0.09642,2673.0,2672.2,2.48606439]
[1643816514899,0.88522326,2672.9,2672.2,2.48606439]
[1643816515099,0.09486,2672.9,2672.3,0.67404597]
[1643816515297,1.87102,2673.2,2672.1,2.41338363]
[1643816515298,0.09407,2673.1,2672.4,0.67404597]
[1643816515497,0.78628277,2673.0,2672.5,0.67404597]
[1643816515697,0.78628277,2673.0,2672.1,2.39432395]
[1643816515898,0.78628277,2673.0,2672.5,0.00476917]
[1643816515899,0.88563444,2672.9,2672.5,0.00476917]
[1643816516100,1.87128,2672.8,2672.5,0.00476917]
[1643816516701,0.88553788,2672.7,2672.5,0.00476917]
[1643816516899,0.88553788,2672.7,2672.0,17.61655647]
[1643816516900,0.74474377,2672.4,2672.0,17.61655647]
[1643816517103,0.434,2672.8,2672.1,0.6741485]
[1643816517104,0.93579,2672.6,2672.1,0.6741485]
[1643816517302,0.09722,2672.9,2672.5,0.00476908]
[1643816517702,0.89198919,2672.8,2672.5,0.00476908]
[1643816518101,2.76326919,2672.8,2672.0,17.61655647]
[1643816518327,0.09722,2672.9,2672.6,0.00476899]
[1643816518524,0.89200974,2672.8,2672.6,0.00476899]
[1643816519324,0.9356,2672.7,2672.0,17.61655647]
[1643816519523,0.74747047,2672.6,2672.1,0.66485629]
[1643816519827,0.9356,2672.7,2672.1,0.66485629]
[1643816520226,0.99999999,2672.5,2672.0,17.61655647]
[1643816520436,2.9,2672.1,2672.0,17.61655647]
[1643816520626,2.9,2672.1,2671.8,0.187]
[1643816520627,2.85,2672.0,2671.8,0.187]
[1643816520827,4.22405824,2671.9,2671.8,0.187]
[1643816521023,4.84354482,2671.9,2671.8,0.187]
[1643816521222,4.84354482,2671.9,2670.7,1.54969987]
[1643816521223,1.40557341,2671.9,2670.7,1.54969987]
[1643816521425,1.40557341,2671.9,2670.9,0.70919419]
[1643816521426,0.434,2671.9,2670.9,0.70919419]
[1643816521624,2.80847,2672.2,2670.9,0.70919419]